bitfinex/quotes_ETHUSD_20251107
["timestamp","ask_amount","ask_price","bid_price","bid_amount"]
[1762481079175,1.272,3322.4,3322.3,5.251404]
[1762481080062,4.28187238,3322.4,3322.3,3.79]
[1762481080268,4.49887238,3322.4,3322.3,3.79]
[1762481080501,1.272,3322.4,3322.3,3.79]
[1762481080679,4.28187238,3322.4,3322.3,3.79]
[1762481081983,4.49887238,3322.4,3322.3,3.79]
[1762481082190,4.82857238,3322.4,3322.3,3.79]
[1762481082900,3.00996297,3322.3,3322.0,3.79]
[1762481083081,1.272,3322.4,3322.0,3.79]
[1762481083456,3.01014418,3322.1,3322.0,3.79]
[1762481083657,1.272,3322.4,3322.3,0.4579]
[1762481084076,1.272,3322.4,3322.3,0.9189]
[1762481084559,1.272,3322.4,3322.3,3.92886297]
[1762481084760,1.272,3322.4,3322.3,0.9189]
[1762481086793,1.272,3322.4,3322.3,3.92886297]
[1762481087366,1.272,3322.4,3322.3,0.9189]
[1762481088098,1.272,3322.4,3321.8,0.75]
[1762481088099,1.272,3322.4,3321.4,1.54231592]
[1762481088275,3.01027044,3322.0,3321.7,3.79]
[1762481088478,3.0101431,3322.2,3321.7,3.79]
[1762481088676,3.0101722,3322.1,3321.7,3.79]
[1762481088990,1.272,3322.4,3321.7,3.79]
[1762481089176,3.01019859,3322.1,3321.7,3.79]
[1762481089501,1.272,3322.4,3322.3,0.001]
[1762481089703,1.272,3322.4,3322.3,4.2489]
[1762481090304,1.272,3322.4,3322.3,4.3993]
[1762481090505,1.272,3322.4,3322.3,3.9414]
[1762481090792,1.272,3322.4,3322.3,4.3993]
[1762481091100,1.272,3322.4,3322.3,4.8603]
[1762481091598,1.272,3322.4,3322.3,4.3993]
[1762481091891,4.28187238,3322.4,3322.3,3.9414]
[1762481092292,1.272,3322.4,3322.3,3.9414]
[1762481093302,4.28187238,3322.4,3322.3,3.9414]
[1762481093763,1.272,3322.4,3322.3,3.9414]
[1762481095096,4.28187238,3322.4,3322.3,3.9414]
[1762481095565,4.61267238,3322.4,3322.3,3.9414]
[1762481095968,1.272,3322.4,3322.3,3.9414]
[1762481096601,1.272,3322.4,3322.3,4.3993]
[1762481096797,1.272,3322.4,3322.3,4.8603]
[1762481098184,1.272,3322.4,3322.3,4.3993]
[1762481098866,1.272,3322.4,3322.3,7.87026297]
[1762481099065,1.272,3322.4,3322.3,9.9791774]
[1762481099311,1.272,3322.4,3322.3,10.1295774]
[1762481100801,1.27,3322.4,3322.3,10.1295774]
[1762481101008,0.002,3322.8,3322.7,0.405504]
[1762481101180,0.002,3322.8,3322.7,0.863404]
[1762481101381,0.002,3322.8,3322.7,4.33400462]
[1762481101582,0.002,3322.8,3322.7,4.48440462]
[1762481101778,0.002,3322.8,3322.7,8.00142138]
[1762481102263,0.002,3322.8,3322.7,15.68113338]
[1762481102463,0.002,3324.6,3323.2,1.259712]
[1762481102667,0.002,3324.6,3324.1,3.80433308]
[1762481102885,0.002,3324.6,3324.1,0.796]
[1762481103110,0.002,3324.6,3324.1,4.67083708]
[1762481103418,0.002,3324.6,3324.1,5.51467559]
[1762481103616,0.002,3324.6,3324.1,6.63609954]
[1762481103846,0.002,3324.6,3324.1,7.58375134]
[1762481104029,0.002,3324.6,3324.1,1.201504]
[1762481104170,0.002,3324.6,3324.1,0.3381]
[1762481104512,3.00799192,3324.5,3324.1,0.3381]
[1762481104663,3.00799192,3324.5,3324.1,0.1877]
[1762481105093,3.00991332,3324.6,3324.1,0.6456]
[1762481105395,0.24870303,3324.2,3323.1,0.1877]
[1762481105705,0.0034,3324.0,3323.2,0.747]
[1762481105911,0.04100529,3324.0,3322.3,1.10781043]
[1762481106206,0.1504,3323.2,3322.3,0.001]
[1762481106411,3.00948921,3322.9,3322.3,0.001]
[1762481106583,3.04685383,3323.1,3322.3,0.001]
[1762481106584,3.00987238,3322.4,3322.3,0.001]
[1762481107000,3.00942177,3322.9,3322.3,0.4589]
[1762481107308,1.748912,3323.2,3322.3,0.001]
[1762481107808,3.00970549,3322.6,3322.3,0.001]
[1762481108308,3.00960184,3322.7,3322.3,0.001]
[1762481108808,0.4892,3323.2,3322.3,0.001]
[1762481109199,3.21897238,3322.4,3322.3,0.001]
[1762481109716,0.1504,3323.2,3322.3,0.001]
[1762481109873,1.259712,3323.0,3322.3,0.001]
[1762481110086,0.1504,3323.2,3322.3,0.001]
[1762481110409,3.00967293,3322.7,3322.3,0.001]
[1762481110711,1.410112,3323.2,3322.3,0.001]
[1762481110712,1.259712,3322.8,3322.3,0.001]
[1762481110913,0.1504,3323.2,3322.3,0.001]
[1762481111097,3.00926835,3323.1,3322.4,3.00980121]
[1762481111302,3.21897238,3322.4,3322.3,0.001]
[1762481112889,3.55647238,3322.4,3322.3,0.001]
[1762481113532,3.00976644,3322.6,3322.3,0.001]
[1762481113533,3.00974906,3322.6,3322.3,0.001]
[1762481113828,0.4892,3323.2,3322.3,0.001]
[1762481113980,3.00979247,3322.5,3322.3,0.001]
[1762481114578,0.1504,3323.2,3322.3,0.001]
[1762481114783,0.0512,3323.1,3322.4,0.1504]
[1762481115119,0.0512,3323.1,3322.4,3.17239545]
[1762481115120,3.00933719,3323.0,3322.4,3.17239545]
[1762481115330,3.00933719,3323.0,3322.4,3.48973499]
[1762481115512,3.00933719,3323.0,3322.4,3.96253499]
[1762481115942,3.00933719,3323.0,3322.4,0.95268428]
[1762481116319,0.0512,3323.1,3322.4,0.95268428]
[1762481116549,3.15960967,3323.2,3322.9,0.1504]
[1762481117055,3.00895177,3323.5,3322.9,0.1504]
[1762481117213,3.00987238,3322.4,3322.3,0.001]
[1762481117415,4.60838438,3322.4,3322.3,0.001]
[1762481117737,3.01023479,3322.0,3321.9,0.001]
[1762481117937,3.01233479,3322.0,3321.9,0.001]
[1762481118112,4.64847472,3322.0,3321.9,0.001]
[1762481118944,4.61084679,3322.0,3321.9,0.001]
[1762481120333,10.42298036,3322.0,3321.9,0.001]
[1762481120566,3.01050666,3321.7,3321.6,0.001]
[1762481120721,4.51484999,3321.7,3321.6,0.001]
[1762481121064,4.85364999,3321.7,3321.6,0.001]
[1762481122225,4.81601866,3321.7,3321.6,0.001]
[1762481129166,4.85364999,3321.7,3321.6,0.001]
[1762481129895,3.01086923,3321.3,3321.2,0.001]
[1762481130235,10.04918687,3321.3,3321.2,0.001]
[1762481130538,10.04918687,3321.3,3320.4,0.001]
[1762481130539,3.01159463,3320.5,3320.4,0.001]
[1762481130692,10.05201227,3320.5,3320.4,0.001]
[1762481131031,10.39081227,3320.5,3320.4,0.001]
[1762481132739,10.39081227,3320.5,3320.0,0.001]
[1762481132740,3.01195747,3320.1,3320.0,0.001]
[1762481132890,3.01195747,3320.1,3318.1,3.01371004]
[1762481132891,0.03764946,3320.1,3317.4,0.001]
[1762481133092,1.259712,3319.0,3317.7,0.6552]
[1762481133388,0.1504,3319.4,3318.1,0.4728]
[1762481133603,3.01337834,3318.6,3318.2,0.405504]
[1762481133802,3.01337834,3318.6,3318.1,0.4728]
[1762481134041,3.01337834,3318.6,3318.1,0.83971461]
[1762481134417,0.03766421,3318.8,3318.1,0.83971461]
[1762481134418,0.03766421,3318.8,3318.5,0.4733]
[1762481134765,3.01310992,3318.9,3318.7,0.4733]
[1762481134969,1.259712,3319.0,3318.7,0.4733]
[1762481135181,3.01293994,3319.1,3318.8,0.9461]
[1762481135375,3.01287805,3319.1,3318.9,0.4733]
[1762481135528,3.01277472,3319.2,3319.0,0.4733]
[1762481135725,5.77450564,3320.2,3319.1,0.6552]
[1762481135926,3.01186675,3320.2,3320.1,0.1824]
[1762481136544,3.01132257,3320.8,3320.1,1.1285]
[1762481136751,5.77450564,3321.7,3320.3,0.4733]
[1762481137069,3.01124036,3320.9,3320.7,0.4733]
[1762481137222,1.259712,3321.6,3320.7,0.4733]
[1762481137423,5.77450564,3321.7,3320.8,0.4733]
[1762481137758,1.259712,3321.7,3320.8,0.4733]
[1762481137966,3.01123189,3320.9,3320.8,0.4733]
[1762481138124,5.77450564,3321.7,3320.8,0.4733]
[1762481138125,1.259712,3321.2,3320.8,0.4733]
[1762481138326,3.01102408,3321.2,3320.8,0.4733]
[1762481138528,3.01104714,3321.2,3320.8,0.9385]
[1762481138722,3.01111978,3321.1,3320.8,0.9385]
[1762481138954,5.77450564,3321.7,3320.8,0.9385]
[1762481138955,1.259712,3321.2,3320.8,0.9385]
[1762481139141,3.01096557,3321.2,3321.0,0.4557]
[1762481139341,5.77450564,3321.7,3320.5,0.4652]
[1762481139342,4.27031939,3321.6,3320.5,0.4652]
[1762481139524,3.01120875,3321.0,3320.5,0.4652]
[1762481139721,3.01120875,3321.0,3320.5,0.81289638]
[1762481139924,3.01086923,3321.3,3320.5,0.4652]
[1762481140171,3.0114799,3320.7,3320.2,0.405504]
[1762481140330,3.01150777,3320.6,3320.2,0.870704]
[1762481140531,3.01132788,3320.8,3320.6,0.1504]
[1762481140842,3.01141325,3320.7,3320.6,0.1504]
[1762481141368,0.0512,3321.0,3320.4,0.1504]
[1762481141729,3.01143038,3320.7,3320.5,2.516]
[1762481142066,3.01143038,3320.7,3320.5,3.0157]
[1762481142558,3.01150394,3320.6,3320.5,2.516]
[1762481142930,0.0512,3321.0,3320.5,3.0011]
[1762481143126,3.06236515,3321.0,3320.6,0.4997]
[1762481143333,0.0512,3321.0,3320.9,0.4851]
[1762481143671,1.259712,3321.6,3320.9,0.4851]
[1762481143672,3.01105145,3321.1,3320.9,0.4851]
[1762481143966,1.259712,3321.2,3321.0,2.516]
[1762481144262,1.259712,3321.2,3321.1,0.1851]
[1762481144450,0.002,3321.8,3321.1,3.1862]
[1762481144628,0.002,3321.8,3321.7,0.4851]
[1762481144827,0.002,3321.8,3321.7,0.9848]
[1762481145281,0.002,3321.8,3321.7,3.99530666]
[1762481145583,0.002,3321.9,3321.8,3.41592003]
[1762481145746,0.002,3322.2,3322.1,3.41564818]
[1762481145948,0.002,3322.5,3322.2,3.41555757]
[1762481146283,0.002,3322.5,3322.2,4.41251253]
[1762481146483,0.002,3322.5,3322.4,3.41537638]
[1762481146686,0.002,3324.3,3322.4,3.41537638]
[1762481146687,0.002,3324.2,3322.6,0.405504]
[1762481146850,0.002,3324.2,3323.2,0.4851]
[1762481146851,3.00875433,3323.7,3323.2,0.4851]
[1762481147050,3.00875433,3323.7,3323.3,0.6848]
[1762481147447,0.2031,3323.4,3323.1,0.01212794]
[1762481147648,0.0735,3322.6,3321.9,0.1851]
[1762481147849,3.01000148,3322.3,3321.9,0.1851]
[1762481148151,3.01000148,3322.3,3321.3,1.259712]
[1762481148152,3.01023479,3322.0,3321.6,0.4997]
[1762481148368,3.00978179,3322.5,3321.5,0.1851]
[1762481148604,3.00978179,3322.5,3321.0,0.1851]
[1762481148605,3.01086923,3321.3,3321.0,0.1851]
[1762481148888,3.01086923,3321.3,3320.1,3.19429677]
[1762481148889,3.01105815,3321.1,3320.7,0.1851]
[1762481149053,3.01114296,3321.0,3320.7,0.1851]
[1762481149405,3.01124468,3320.9,3320.7,0.1851]
[1762481149881,0.1504,3321.6,3320.8,0.4851]
[1762481150081,3.0110204,3321.2,3320.9,0.4997]
[1762481150485,1.410112,3321.8,3321.1,0.1851]
[1762481150692,4.27003741,3321.9,3321.1,0.1851]
[1762481150693,1.259712,3321.9,3321.1,0.1851]
[1762481150849,3.01078481,3321.4,3321.1,0.1851]
[1762481151051,0.1504,3321.9,3320.8,0.405504]
[1762481151297,3.01103228,3321.2,3320.9,0.4997]
[1762481151452,0.1504,3321.9,3320.9,0.4997]
[1762481151785,3.01078497,3321.4,3321.1,0.6702]
[1762481151988,3.01088783,3321.3,3321.1,0.6702]
[1762481152175,3.01095989,3321.2,3321.1,0.6702]
[1762481152487,3.01095989,3321.2,3321.1,0.1851]
[1762481152705,0.1504,3321.9,3321.1,0.1851]
[1762481152882,0.1504,3321.9,3321.1,1.1699]
[1762481152883,3.01073641,3321.5,3321.1,1.1699]
[1762481153089,3.01093192,3321.3,3321.1,1.1699]
[1762481153261,3.01095989,3321.2,3321.1,1.1699]
[1762481153460,0.1504,3321.9,3321.1,1.1699]
[1762481153663,3.01074781,3321.5,3321.1,1.1699]
[1762481154000,3.01087267,3321.3,3321.1,1.1699]
[1762481154297,3.01087267,3321.3,3320.8,0.405504]
[1762481154298,3.01095989,3321.2,3320.8,0.405504]
[1762481154660,3.01095989,3321.2,3320.8,0.905204]
[1762481155098,3.01105867,3321.1,3320.9,0.4997]
[1762481155308,1.259712,3321.9,3320.9,0.4997]
[1762481155608,3.01082858,3321.4,3321.2,0.6702]
[1762481155818,5.77450564,3322.7,3321.2,0.6702]
[1762481155973,3.0101127,3322.2,3322.1,0.1851]
[1762481157109,3.01077858,3321.4,3321.3,2.516]
[1762481157274,3.01086923,3321.3,3321.2,0.1851]
[1762481157695,3.01079996,3321.4,3321.2,0.3355]
[1762481157874,3.01079996,3321.4,3321.2,0.1851]
[1762481158275,3.01086923,3321.3,3321.2,0.1851]
[1762481158511,0.1504,3321.8,3321.2,0.1851]
[1762481158697,0.1504,3321.8,3320.8,2.516]
[1762481159011,0.1504,3321.8,3320.7,0.1851]
[1762481159012,3.01072819,3321.5,3320.9,0.51187777]
[1762481159309,0.1504,3321.9,3320.9,0.51187777]
[1762481159610,0.1504,3321.9,3321.0,0.3523185]
[1762481159810,3.01068637,3321.6,3321.0,0.3523185]
[1762481160014,3.01063215,3321.6,3321.1,0.6848]
[1762481160330,3.010095,3322.2,3320.7,0.1851]
[1762481160331,3.01106389,3321.1,3320.8,0.405504]
[1762481160528,3.01113016,3321.1,3320.9,0.4997]
[1762481160698,3.01041603,3321.8,3320.9,0.4997]
[1762481160898,3.01095989,3321.2,3321.1,0.001]
[1762481161418,3.21405989,3321.2,3321.1,0.001]
[1762481161620,5.77450564,3322.1,3321.1,0.6712]
[1762481161823,1.259712,3322.2,3321.2,3.0157]
[1762481162135,0.3468,3322.6,3321.8,0.4851]
[1762481162136,0.002,3322.6,3321.8,0.4851]
[1762481162333,0.002,3322.6,3322.1,0.1851]
[1762481162628,3.01005357,3322.2,3322.1,0.1851]
[1762481162816,0.002,3322.6,3322.1,0.1851]
[1762481163021,3.0117068,3322.6,3322.1,0.1851]
[1762481163228,0.002,3322.6,3322.1,0.1851]
[1762481163811,3.01005357,3322.2,3322.1,0.1851]
[1762481164513,0.002,3322.6,3322.1,1.1699]
[1762481164694,3.01173132,3322.6,3322.1,1.1699]
[1762481164900,3.00993308,3322.4,3322.1,1.1699]
[1762481165615,3.00997371,3322.3,3322.1,1.1699]
[1762481165814,0.002,3322.6,3322.5,0.4851]
[1762481166010,0.002,3322.6,3322.5,3.90038579]
[1762481166210,0.002,3322.6,3322.5,5.09111747]
[1762481166447,0.002,3323.0,3322.5,5.09111747]
[1762481166448,0.002,3323.0,3322.9,3.41492348]
[1762481166744,0.002,3323.3,3323.2,3.0091478]
[1762481166897,0.002,3323.3,3323.2,3.9939478]
[1762481167102,0.002,3323.3,3323.2,1.390304]
[1762481167322,0.002,3323.3,3323.2,4.41158412]
[1762481167534,0.002,3323.3,3323.2,2.13239126]
[1762481167811,0.002,3323.3,3323.2,4.5498518]
[1762481168015,0.002,3323.3,3323.2,4.56198412]
[1762481168335,0.002,3324.3,3323.2,4.56198412]
[1762481168336,3.00833308,3324.1,3323.2,1.1352]
[1762481168537,3.01017078,3324.3,3323.5,0.405504]
[1762481168727,3.01017078,3324.3,3323.5,3.41438009]
[1762481168728,3.01031877,3324.2,3323.5,3.41438009]
[1762481168931,3.01031877,3324.2,3324.1,0.1851]
[1762481168932,0.002,3324.2,3324.1,0.1851]
[1762481169564,0.002,3324.2,3324.1,1.1699]
[1762481169857,0.002,3324.2,3324.1,4.73413708]
[1762481170152,0.002,3324.2,3324.1,4.74624903]
[1762481170349,0.002,3324.6,3324.2,3.41374658]
[1762481170551,0.002,3324.6,3324.5,3.89857512]
[1762481170927,0.002,3324.9,3324.6,3.41338464]
[1762481171246,0.002,3324.9,3324.8,3.50569971]
[1762481171449,0.002,3324.9,3324.8,5.07302424]
[1762481171652,0.0512,3326.3,3324.8,3.555516]
[1762481171853,3.00571085,3327.0,3326.2,0.6793]
[1762481172069,9.13061341,3327.5,3326.2,0.6793]
[1762481172070,3.00540645,3327.4,3326.2,0.6793]
[1762481172228,3.00605234,3326.7,3326.2,0.6793]
[1762481172557,3.00605857,3326.7,3326.2,0.6793]
[1762481172852,3.00596944,3326.8,3326.6,0.498]
[1762481173054,3.00543984,3327.3,3326.3,0.902204]
[1762481173362,8.77979166,3327.5,3326.3,0.405504]
[1762481173541,3.00605506,3326.7,3326.2,0.1813]
[1762481173711,3.00557701,3327.2,3326.3,0.902204]
[1762481173912,0.3508,3327.9,3326.6,0.498]
[1762481174113,5.92690564,3328.0,3326.7,0.405504]
[1762481174340,3.00568103,3327.1,3326.7,0.405504]
[1762481174517,1.259712,3327.8,3326.7,0.405504]
[1762481174717,3.00507858,3327.7,3326.6,0.902204]
[1762481175017,3.00560776,3327.2,3326.6,0.902204]
[1762481175253,3.00493375,3327.9,3326.6,0.902204]
[1762481175470,3.0055903,3327.2,3326.8,0.405504]
[1762481175652,1.259712,3327.9,3326.8,0.405504]
[1762481175856,3.00540966,3327.4,3326.7,0.902204]
[1762481176059,3.00544331,3327.3,3326.8,0.4967]
[1762481176373,3.00554416,3327.2,3326.8,0.4967]
[1762481176676,1.259712,3327.7,3326.8,0.4967]
[1762481176882,3.00562355,3327.1,3326.8,0.4967]
[1762481177065,3.00555781,3327.2,3326.8,0.4967]
[1762481177377,3.00544247,3327.3,3326.8,0.4967]
[1762481177554,1.259712,3327.9,3326.8,0.4967]
[1762481177879,3.00569073,3327.1,3326.8,0.4967]
[1762481178184,3.00545663,3327.3,3326.8,0.4967]
[1762481178349,3.00553017,3327.2,3326.8,0.4967]
[1762481178682,3.005621,3327.1,3326.8,0.4967]
[1762481178880,3.00572823,3327.0,3326.8,0.4967]
[1762481179109,4.26481629,3327.7,3326.2,0.678]
[1762481179110,0.1263,3326.9,3326.2,0.678]
[1762481179244,0.3235,3326.9,3326.2,0.1813]
[1762481179445,3.00618015,3326.5,3326.2,0.1813]
[1762481179750,3.006253,3326.4,3326.3,0.405504]
[1762481180142,3.00464423,3328.2,3326.3,1.400204]
[1762481180369,3.00379222,3329.2,3327.6,0.498]
[1762481180561,3.15086781,3329.6,3327.7,0.9947]
[1762481180789,1.259712,3329.1,3327.7,0.9947]
[1762481180966,3.0047862,3328.1,3327.7,0.9947]
[1762481181296,3.00471822,3328.1,3327.7,0.9947]
[1762481181498,3.00481724,3328.0,3327.8,0.4967]
[1762481181673,0.0512,3328.7,3327.8,0.4967]
[1762481181880,3.00462872,3328.2,3327.9,0.6476]
[1762481182075,3.00462872,3328.2,3327.9,0.498]
[1762481182281,3.00462872,3328.2,3328.1,0.1496]
[1762481182588,3.00445313,3328.4,3328.1,0.1496]
[1762481182780,3.00462712,3328.2,3328.1,0.1496]
[1762481183367,1.259712,3328.6,3328.1,0.3309]
[1762481183600,0.15279126,3329.9,3328.2,0.50871741]
[1762481183601,0.0721,3329.0,3328.2,0.50871741]
[1762481183899,3.00408555,3328.8,3328.2,0.4967]
[1762481184204,0.1569889,3329.5,3328.5,0.1496]
[1762481184205,0.0512,3329.2,3328.5,0.1496]
[1762481184423,0.3508,3329.7,3328.6,0.01200649]
[1762481184703,5.46301049,3330.1,3328.8,0.405504]
[1762481184888,0.1263,3330.1,3328.9,0.01199403]
[1762481185065,0.3508,3330.9,3329.1,3.00375166]
[1762481185265,0.3508,3330.8,3329.1,0.65164403]
[1762481185470,3.00305683,3330.0,3329.2,1.083504]
[1762481185766,3.00335303,3329.7,3329.2,0.1813]
[1762481185964,3.00318892,3329.8,3329.3,0.405504]
[1762481186190,0.3508,3330.6,3329.3,0.902204]
[1762481186390,3.00270572,3330.4,3329.3,0.902204]
[1762481186655,3.00325361,3329.8,3329.3,0.902204]
[1762481186898,3.00331047,3329.7,3329.4,0.0119886]
[1762481187100,3.00331047,3329.7,3329.3,0.902204]
[1762481187301,3.00331047,3329.7,3329.4,0.4967]
[1762481187768,3.00336691,3329.6,3329.4,0.4967]
[1762481187968,3.00391766,3329.0,3328.6,0.678]
[1762481188163,3.35431833,3329.5,3328.7,0.405504]
[1762481188371,5.33671049,3330.9,3329.4,3.50154385]
[1762481188568,5.33671049,3330.9,3328.7,3.90629894]
[1762481188569,3.00288409,3330.2,3329.7,0.498]
[1762481188865,3.00228173,3330.8,3329.0,0.744]
[1762481188866,1.259712,3330.6,3329.0,0.744]
[1762481189064,3.00402721,3328.9,3328.3,0.4967]
[1762481189365,3.0041758,3328.7,3328.3,0.4967]
[1762481189565,0.1263,3329.3,3328.6,0.678]
[1762481189804,0.1263,3329.3,3328.6,1.176]
[1762481190302,0.1263,3329.3,3328.0,0.4967]
[1762481190303,3.04127116,3329.2,3328.0,0.4967]
[1762481190521,3.00372461,3329.2,3326.9,3.00576659]
[1762481190710,3.00372461,3329.2,3327.5,3.5019407]
[1762481190711,3.0047004,3328.2,3327.5,3.5019407]
[1762481191181,3.0047004,3328.2,3328.1,0.1813]
[1762481191384,3.00488641,3328.0,3327.6,0.4967]
[1762481191579,3.00430982,3328.6,3327.6,0.4967]
[1762481191785,3.00477633,3328.1,3327.6,0.4967]
[1762481192082,3.00441764,3328.5,3327.6,0.4967]
[1762481192286,3.00485554,3328.0,3327.6,0.4967]
[1762481192703,0.3508,3328.5,3327.0,0.678]
[1762481193124,3.00508835,3327.7,3327.1,0.4967]
[1762481193321,3.00518016,3327.6,3327.1,0.86506322]
[1762481193524,3.00453685,3328.3,3326.6,0.4967]
[1762481193525,3.0047174,3328.1,3326.6,0.4967]
[1762481193686,0.03756009,3328.0,3326.6,0.4967]
[1762481194023,3.0057224,3327.0,3326.6,0.4967]
[1762481194318,0.0721,3326.7,3326.2,0.1813]
[1762481194483,0.0512,3327.0,3326.5,0.1496]
[1762481194686,0.3508,3327.6,3326.2,0.1813]
[1762481195003,3.00578085,3327.0,3326.5,0.1496]
[1762481195197,0.3508,3327.5,3326.2,0.1813]
[1762481195198,1.259712,3327.8,3326.6,0.01205354]
[1762481195513,3.00570421,3327.1,3326.4,3.41173843]
[1762481195715,3.00552796,3327.3,3326.5,3.89364508]
[1762481195910,1.259712,3327.8,3326.6,3.50276902]
[1762481196226,3.00544451,3327.3,3326.6,0.4967]
[1762481196423,3.00554004,3327.2,3326.6,0.4967]
[1762481196646,3.0056237,3327.1,3326.6,0.4967]
[1762481197290,4.26474176,3327.8,3326.6,3.50270074]
[1762481197291,1.259712,3327.8,3326.6,3.50270074]
[1762481197486,0.38836348,3327.7,3326.2,0.405504]
[1762481197710,3.00573942,3327.0,3326.3,3.50297917]
[1762481197926,1.259712,3327.8,3326.4,0.39084832]
[1762481198087,1.259712,3327.8,3326.4,3.46623669]
[1762481198088,3.00569945,3327.1,3326.4,3.46623669]
[1762481198307,3.00572948,3327.0,3326.4,0.46]
[1762481198828,1.610512,3327.8,3326.4,0.46]
[1762481198829,3.00588716,3326.9,3326.4,0.46]
[1762481199234,0.03757364,3326.8,3326.1,0.1813]
[1762481199438,3.00625544,3326.4,3326.1,0.1813]
[1762481199891,0.0721,3326.9,3326.2,0.46]
[1762481200087,3.00622346,3326.5,3326.1,0.1813]
[1762481200338,3.00609563,3326.6,3326.1,0.1813]
[1762481200693,3.00599461,3326.7,3326.1,0.1813]
[1762481200926,0.0721,3326.9,3326.1,0.1813]
[1762481201223,1.259712,3327.8,3326.4,3.00624387]
[1762481201430,3.00553746,3327.2,3326.5,3.30672792]
[1762481201627,1.259712,3327.8,3326.6,0.4693]
[1762481201833,1.259712,3327.8,3326.1,0.1813]
[1762481201834,0.3508,3327.6,3326.1,0.1813]
[1762481202420,3.00640954,3326.3,3325.9,0.1813]
[1762481202656,3.00566218,3327.1,3325.9,0.1813]
[1762481202951,5.33671049,3327.2,3325.9,0.1813]
[1762481202952,5.33671049,3327.2,3326.0,0.4693]
[1762481203150,5.33671049,3327.2,3326.4,0.405504]
[1762481203151,3.00553955,3327.2,3326.4,0.405504]
[1762481203319,0.03756235,3327.8,3326.5,0.34117807]
[1762481203519,3.00572587,3327.0,3326.5,0.34117807]
[1762481203700,0.38836235,3327.8,3326.5,0.34117807]
[1762481203910,3.00560029,3327.2,3326.5,3.00611824]
[1762481204130,3.00560029,3327.2,3326.4,0.874804]
[1762481204334,3.00562617,3327.1,3326.5,3.00610097]
[1762481205116,0.3508,3327.8,3326.4,3.41175267]
[1762481205311,3.00563192,3327.1,3327.0,0.1496]
[1762481205723,3.00605959,3326.7,3326.1,3.41196103]
[1762481205934,3.00605959,3326.7,3326.1,4.32355556]
[1762481206145,3.00617175,3326.5,3326.1,0.91159453]
[1762481206353,3.00610105,3326.6,3326.0,0.405504]
[1762481206531,0.03757477,3326.7,3325.1,2.516]
[1762481206723,3.00658336,3326.1,3325.2,0.4693]
[1762481206927,3.00658336,3326.1,3326.0,0.1496]
[1762481207170,3.00681225,3325.8,3325.2,3.47656825]
[1762481207320,3.00681225,3325.8,3325.2,4.14310042]
[1762481207516,0.1263,3325.9,3325.2,0.66653217]
[1762481207721,3.00700254,3325.6,3325.0,0.1813]
[1762481207933,0.1263,3325.9,3325.0,0.1813]
[1762481207934,3.0070958,3325.5,3325.0,0.1813]
[1762481208149,3.00700342,3325.6,3325.0,3.1888082]
[1762481208616,3.00700342,3325.6,3324.9,0.001]
[1762481208617,3.00679535,3325.8,3324.9,0.001]
[1762481208818,3.00751879,3325.0,3324.9,0.001]
[1762481209659,3.20471879,3325.0,3324.9,0.001]
[1762481209865,1.259712,3325.7,3324.9,0.001]
[1762481210020,3.20471879,3325.0,3324.9,0.001]
[1762481211225,3.59161277,3325.0,3324.9,0.001]
[1762481211422,4.81373079,3325.0,3324.9,0.001]
[1762481211774,3.00815209,3324.3,3324.2,0.001]
[1762481212124,0.1972,3324.3,3324.2,0.001]
[1762481212321,3.20535209,3324.3,3324.2,0.001]
[1762481212746,0.1972,3324.3,3324.2,0.001]
[1762481212932,1.259712,3325.0,3324.2,0.001]
[1762481213144,3.00815209,3324.3,3324.2,0.001]
[1762481213367,3.20535209,3324.3,3324.2,0.001]
[1762481213559,3.24295399,3324.3,3324.2,0.001]
[1762481213931,0.5465,3324.3,3324.2,0.001]
[1762481214161,3.20535209,3324.3,3324.2,0.001]
[1762481214348,0.1972,3324.3,3324.2,0.001]
[1762481214566,3.20535209,3324.3,3324.2,0.001]
[1762481215283,0.1972,3324.3,3324.2,0.001]
[1762481215437,3.20535209,3324.3,3324.2,0.001]
[1762481216291,3.24295399,3324.3,3324.2,0.001]
[1762481216817,3.55465209,3324.3,3324.2,0.001]
[1762481217153,0.5465,3324.3,3324.2,0.001]
[1762481217352,3.55465209,3324.3,3324.2,0.001]
[1762481218396,4.85196599,3324.3,3324.2,0.001]
[1762481219042,4.81436409,3324.3,3324.2,0.001]
[1762481220777,4.46506409,3324.3,3324.2,0.001]
[1762481220985,4.81436409,3324.3,3324.2,0.001]
[1762481221184,4.81436409,3324.3,3322.0,0.20171771]
[1762481221185,1.8438139,3324.3,3322.2,0.4693]
[1762481221378,3.00978408,3322.5,3322.0,0.1896]
[1762481221541,0.0376234,3322.4,3322.0,0.1896]
[1762481221743,3.0098207,3322.5,3322.0,0.1896]
[1762481221947,0.4631,3323.2,3322.0,0.6589]
[1762481222209,3.00997182,3322.3,3322.0,0.1896]
[1762481222486,3.01095989,3321.2,3321.1,0.001]
[1762481223082,1.729812,3322.2,3321.1,0.1906]
[1762481223288,3.0108039,3321.4,3321.1,0.1906]
[1762481223451,0.4701,3322.2,3321.1,0.1906]
[1762481223655,3.01094446,3321.3,3321.1,0.001]
[1762481223894,0.3508,3322.1,3321.1,0.001]
[1762481223895,3.01095989,3321.2,3321.1,0.001]
[1762481224199,3.20815989,3321.2,3321.1,0.001]
[1762481224440,4.81717189,3321.2,3321.1,0.001]
[1762481225230,4.46787189,3321.2,3321.1,0.001]
[1762481225410,4.81717189,3321.2,3321.1,0.001]
[1762481226010,1.259712,3321.2,3321.1,0.001]
[1762481226309,4.81717189,3321.2,3321.1,0.001]
[1762481226837,4.81717189,3321.2,3320.4,0.001]
[1762481226838,3.01132257,3320.8,3320.4,0.001]